fUST/lending_fUST_20250609
["ID","MTS","AMOUNT","RATE_DAILY","PERIOD"]
[365022046,1749407439288,-693.26,0.00020317,2]
[365022047,1749407439298,-225.87556232,0.00020317,2]
[365022048,1749407439308,-440.0,0.00020317,2]
[365022049,1749407439318,-440.0,0.00020318,2]
[365022050,1749407439328,-440.0,0.00020318,2]
[365022051,1749407439337,-440.0,0.00020318,2]
[365022052,1749407439347,-440.0,0.00020318,2]
[365022054,1749407439357,-440.0,0.00020318,2]
[365022056,1749407439367,-440.0,0.00020318,2]
[365022057,1749407439376,-1611.64,0.00020318,2]
[365022058,1749407439385,-561.57580389,0.00020352,2]
[365022059,1749407439395,-160.0,0.00020353,2]
[365022060,1749407439404,-440.0,0.00020547,2]
[365022061,1749407439415,-440.0,0.00020547,2]
[365022062,1749407439424,-696.34,0.00020547,2]
[365022063,1749407439434,-572.72,0.00020591,2]
[365022064,1749407439444,-782.46,0.00020591,2]
[365022065,1749407439453,-1249.72,0.00020591,2]
[365022066,1749407439462,-688.53,0.00020591,2]
[365022067,1749407439472,-864.02,0.00020591,2]
[365022068,1749407439482,-670.9,0.00020591,2]
[365022069,1749407439491,-693.26,0.00020591,2]
[365022070,1749407439501,-389.3970333,0.00020591,2]
[365022071,1749407439513,-440.0,0.00020592,2]
[365022072,1749407439523,-440.0,0.00020592,2]
[365022073,1749407439533,-440.0,0.00020592,2]
[365022074,1749407439544,-418.8,0.00020592,2]
[365022075,1749407439553,-166.01639651,0.00020592,2]
[365022076,1749407439563,-440.0,0.00020592,2]
[365022077,1749407439574,-1611.64,0.00020592,2]
[365022078,1749407439584,-367.84,0.000206,2]
[365022079,1749407439594,-700.0,0.00020821,2]
[365022080,1749407439604,-440.0,0.00020821,2]
[365022081,1749407439614,-440.0,0.00020821,2]
[365022082,1749407439624,-696.34,0.00020821,2]
[365022083,1749407439634,-572.72,0.00020865,2]
[365022084,1749407439643,-782.46,0.00020865,2]
[365022085,1749407439653,-1249.72,0.00020865,2]
[365022086,1749407439663,-688.53,0.00020865,2]
[365022087,1749407439673,-864.02,0.00020865,2]
[365022088,1749407439683,-670.9,0.00020865,2]
[365022089,1749407439693,-693.26,0.00020865,2]
[365022090,1749407439703,-440.0,0.00020866,2]
[365022091,1749407439713,-440.0,0.00020866,2]
[365022092,1749407439723,-309.69,0.00020866,2]
[365022093,1749407439733,-440.0,0.00020866,2]
[365022094,1749407439743,-1611.64,0.00020866,2]
[365022095,1749407439754,-360.0,0.00020899,2]
[365022096,1749407439763,-407.0,0.00020899,2]
[365022097,1749407439773,-171.84216109,0.00020995,2]
[365022098,1749407439783,-440.0,0.00021095,2]
[365022099,1749407439793,-239.00260764,0.00021095,2]
[365022100,1749407439803,-696.34,0.00021095,2]
[365022101,1749407439813,-572.72,0.00021139,2]
[365022102,1749407439823,-1249.72,0.00021139,2]
[365022103,1749407439833,-782.46,0.00021139,2]
[365022105,1749407439843,-688.53,0.00021139,2]
[365022107,1749407439853,-864.02,0.00021139,2]
[365022109,1749407439863,-670.9,0.00021139,2]
[365022110,1749407439873,-693.26,0.00021139,2]
[365022111,1749407439883,-440.0,0.0002114,2]
[365022112,1749407439893,-440.0,0.0002114,2]
[365022113,1749407439902,-440.0,0.0002114,2]
[365022114,1749407439912,-1611.64,0.0002114,2]
[365022115,1749407439922,-440.0,0.00021369,2]
[365022116,1749407439931,-696.34,0.00021369,2]
[365022117,1749407439942,-572.72,0.00021413,2]
[365022118,1749407439952,-1249.72,0.00021413,2]
[365022119,1749407439961,-782.46,0.00021413,2]
[365022120,1749407439971,-688.53,0.00021413,2]
[365022121,1749407439980,-864.02,0.00021413,2]
[365022122,1749407439990,-670.9,0.00021413,2]
[365022123,1749407440000,-693.26,0.00021413,2]
[365022124,1749407440010,-440.0,0.00021414,2]
[365022125,1749407440019,-440.0,0.00021414,2]
[365022126,1749407440029,-440.0,0.00021414,2]
[365022127,1749407440039,-1611.64,0.00021414,2]
[365022128,1749407440049,-1581.17,0.00021492,2]
[365022129,1749407440059,-551.36,0.00021643,2]
[365022130,1749407440069,-696.34,0.00021643,2]
[365022131,1749407440080,-572.72,0.00021687,2]
[365022132,1749407440090,-782.46,0.00021687,2]
[365022133,1749407440100,-1249.72,0.00021687,2]
[365022134,1749407440111,-688.53,0.00021687,2]
[365022135,1749407440120,-864.02,0.00021687,2]
[365022136,1749407440131,-670.9,0.00021687,2]
[365022137,1749407440141,-693.26,0.00021687,2]
[365022138,1749407440152,-440.0,0.00021688,2]
[365022139,1749407440162,-440.0,0.00021688,2]
[365022140,1749407440171,-319.06383892,0.00021688,2]
[365022141,1749407440181,-1611.64,0.00021688,2]
[365022142,1749407440191,-164.95073284,0.00021796,2]
[365022143,1749407440201,-700.0,0.00021917,2]
[365022144,1749407440212,-696.34,0.00021917,2]
[365022145,1749407440223,-572.72,0.00021961,4]
[365022147,1749407440233,-782.46,0.00021961,4]
[365022148,1749407440243,-1249.72,0.00021961,4]
[365022149,1749407440252,-688.53,0.00021961,4]
[365022150,1749407440263,-864.02,0.00021961,4]
[365022151,1749407440273,-670.9,0.00021961,4]
[365022152,1749407440282,-693.26,0.00021961,4]
[365022153,1749407440293,-440.0,0.00021962,4]
[365022154,1749407440303,-440.0,0.00021962,4]
[365022155,1749407440313,-1611.64,0.00021962,4]
[365022156,1749407440324,-158.6873432,0.00022082,2]
[365022157,1749407440334,-153.0,0.00022082,2]
[365022158,1749407440344,-176.7524085,0.00022082,2]
[365022159,1749407440354,-573.126752,0.00022082,2]
[365022160,1749407440364,-573.126752,0.00022082,2]
[365022161,1749407440374,-158.6873432,0.00022082,2]
[365022162,1749407440386,-572.1319235,0.00022082,2]
[365022163,1749407440398,-153.0,0.00022082,2]
[365022164,1749407440420,-176.7524085,0.00022082,2]
[365022165,1749407440432,-153.0,0.00022082,2]
[365022166,1749407440443,-176.2752279,0.00022082,2]
[365022167,1749407440454,-158.6873432,0.00022082,2]
[365022168,1749407440464,-573.126752,0.00022082,2]
[365022169,1749407440474,-176.6779968,0.00022082,2]
[365022170,1749407440484,-573.126752,0.00022082,2]
[365022171,1749407440495,-158.6873432,0.00022082,2]
[365022172,1749407440505,-158.6873432,0.00022082,2]
[365022173,1749407440517,-573.126752,0.00022082,2]
[365022174,1749407440529,-151.0,0.00022162,2]
[365022175,1749407440540,-5000.0,0.00022162,2]
[365022176,1749407440551,-1688.0,0.00022162,2]
[365022177,1749407440562,-800.0,0.00022162,2]
[365022178,1749407440572,-800.0,0.00022162,2]
[365022179,1749407440581,-800.0,0.00022162,2]
[365022180,1749407440592,-800.0,0.00022162,2]
[365022181,1749407440601,-800.0,0.00022162,2]
[365022182,1749407440612,-800.0,0.00022162,2]
[365022183,1749407440622,-800.0,0.00022162,2]
[365022184,1749407440631,-800.0,0.00022162,2]
[365022185,1749407440641,-800.0,0.00022162,2]
[365022186,1749407440652,-761.42873487,0.00022162,2]
[365022187,1749407440662,-207.4,0.00022162,2]
[365022188,1749407440673,-696.34,0.00022191,4]
[365022189,1749407440683,-319.1472813,0.00022217,2]
[365022190,1749407440694,-572.72,0.00022235,4]
[365022191,1749407440703,-782.46,0.00022235,4]
[365022192,1749407440714,-1249.72,0.00022235,4]
[365022193,1749407440724,-688.53,0.00022235,4]
[365022194,1749407440735,-864.02,0.00022235,4]
[365022195,1749407440746,-670.9,0.00022235,4]
[365022196,1749407440756,-693.26,0.00022235,4]
[365022197,1749407440766,-440.0,0.00022236,4]
[365022198,1749407440776,-496.8,0.00022236,4]
[365022199,1749407440786,-1611.64,0.00022236,4]
[365022200,1749407440795,-696.34,0.00022465,4]
[365022201,1749407440806,-367.84,0.000225,7]
[365022202,1749407440815,-572.72,0.00022509,4]
[365022203,1749407440825,-1249.72,0.00022509,4]
[365022204,1749407441005,-782.46,0.00022509,4]
[365022205,1749407441015,-688.53,0.00022509,4]
[365022206,1749407441025,-864.02,0.00022509,4]
[365022207,1749407441034,-670.9,0.00022509,4]
[365022208,1749407441044,-693.26,0.00022509,4]
[365022209,1749407441054,-440.0,0.0002251,4]
[365022210,1749407441063,-5000.0,0.0002271,2]
[365022211,1749407441074,-696.34,0.00022739,4]
[365022212,1749407441083,-572.72,0.00022783,4]
[365022213,1749407441093,-1249.72,0.00022783,4]
[365022214,1749407441102,-782.46,0.00022783,4]
[365022215,1749407441112,-688.53,0.00022783,4]
[365022216,1749407441121,-864.02,0.00022783,4]
[365022217,1749407441130,-670.9,0.00022783,4]
[365022218,1749407441140,-693.26,0.00022783,4]
[365022219,1749407441150,-440.0,0.00022784,4]
[365022220,1749407441159,-912.15993345,0.00022806,3]
[365022221,1749407441169,-1197.0778642,0.00022904,2]
[365022222,1749407441179,-158.6873432,0.00022904,2]
[365022223,1749407441189,-158.6329813,0.00022904,2]
[365022224,1749407441198,-353.2075706,0.00022904,2]
[365022225,1749407441209,-1145.4394388,0.00022904,2]
[365022226,1749407441219,-153.0,0.00022904,2]
[365022227,1749407441229,-306.0,0.00022904,2]
[365022228,1749407441239,-153.0,0.00022904,2]
[365022229,1749407441248,-158.6873432,0.00022904,2]
[365022230,1749407441258,-573.126752,0.00022904,2]
[365022231,1749407441268,-573.126752,0.00022904,2]
[365022232,1749407441278,-158.6873432,0.00022904,2]
[365022233,1749407441288,-153.0,0.00022904,2]
[365022234,1749407441298,-158.6873432,0.00022904,2]
[365022235,1749407441308,-573.126752,0.00022904,2]
[365022236,1749407441318,-32680.89933984,0.00023,2]
[365022237,1749407441328,-623.95390499,0.00023,2]
[365022238,1749407441338,-2142.65736396,0.00023,30]
[365022239,1749407441348,-1447.378081,0.00023003,3]
[365022240,1749407441358,-151.0,0.00023005,7]
[365022241,1749407441368,-700.0,0.00023013,2]
[365022242,1749407441378,-696.34,0.00023013,4]
[365022243,1749407441388,-572.72,0.00023057,4]
[365022244,1749407441398,-1249.72,0.00023057,4]
[365022245,1749407441407,-782.46,0.00023057,4]
[365022246,1749407441417,-688.53,0.00023057,4]
[365022247,1749407441427,-864.02,0.00023057,4]
[365022248,1749407441437,-670.9,0.00023057,4]
[365022249,1749407441446,-693.26,0.00023057,4]
[365022250,1749407441456,-440.0,0.00023058,4]
[365022251,1749407441466,-39543.1728835,0.00023098,2]
[365022252,1749407441476,-100883.69932532,0.00023231,2]
[365022253,1749407441486,-338.82,0.00023247,30]
[365022254,1749407441496,-5000.0,0.00023258,2]
[365022255,1749407441506,-500.0,0.00023273,2]
[365022256,1749407441515,-600.0,0.00023273,2]
[365022257,1749407441526,-500.0,0.00023273,2]
[365022258,1749407441539,-2371.75,0.00023283,2]
[365022259,1749407441549,-696.34,0.00023287,4]
[365022260,1749407441559,-173.02349563,0.0002329,4]
[365022261,1749407441568,-173.02349563,0.0002329,4]
[365022262,1749407441579,-173.02349563,0.0002329,4]
[365022263,1749407441589,-173.02349563,0.0002329,4]
[365022264,1749407441602,-173.02349563,0.0002329,4]
[365022265,1749407441613,-173.02349563,0.0002329,4]
[365022266,1749407441623,-173.02349563,0.0002329,4]
[365022267,1749407441634,-173.02349563,0.0002329,4]
[365022268,1749407441645,-173.02349563,0.0002329,4]
[365022269,1749407441656,-173.02349563,0.0002329,4]
[365022270,1749407441667,-173.02349563,0.0002329,4]
[365022271,1749407441676,-173.02349563,0.0002329,4]
[365022272,1749407441686,-173.02349563,0.0002329,4]
[365022273,1749407441696,-173.02349563,0.0002329,4]
[365022274,1749407441706,-173.02349563,0.0002329,4]
[365022275,1749407441716,-173.02349563,0.0002329,4]
[365022276,1749407441727,-173.02349563,0.0002329,4]
[365022277,1749407441737,-173.02349563,0.0002329,4]
[365022278,1749407441748,-173.02349563,0.0002329,4]
[365022279,1749407441760,-173.02,0.0002329,4]
[365022280,1749407441770,-403.72148981,0.0002329,4]
[365022281,1749407441780,-403.72148981,0.0002329,4]
[365022282,1749407441791,-403.72148981,0.0002329,4]
[365022283,1749407441801,-403.72148981,0.0002329,4]
[365022284,1749407441811,-403.72148981,0.0002329,4]
[365022285,1749407441821,-403.72148981,0.0002329,4]
[365022286,1749407441832,-403.72148981,0.0002329,4]
[365022287,1749407441842,-403.72148981,0.0002329,4]
[365022288,1749407441854,-403.72148981,0.0002329,4]
[365022289,1749407441864,-403.72148981,0.0002329,4]
[365022290,1749407441874,-403.72148981,0.0002329,4]
[365022291,1749407441884,-403.72148981,0.0002329,4]
[365022292,1749407441894,-403.72148981,0.0002329,4]
[365022293,1749407441904,-403.72148981,0.0002329,4]
[365022294,1749407441914,-403.72148981,0.0002329,4]
[365022295,1749407441926,-403.72148981,0.0002329,4]
[365022296,1749407441938,-403.72148981,0.0002329,4]
[365022297,1749407441949,-156.73560998,0.0002329,4]
[365022298,1749407441960,-156.73560998,0.0002329,4]
[365022299,1749407441970,-156.73560998,0.0002329,4]
[365022300,1749407441980,-156.73560998,0.0002329,4]
[365022301,1749407441990,-156.73560998,0.0002329,4]
[365022302,1749407442000,-156.73560998,0.0002329,4]
[365022303,1749407442010,-156.73560998,0.0002329,4]
[365022304,1749407442020,-156.73560998,0.0002329,4]
[365022305,1749407442030,-156.73560998,0.0002329,4]
[365022306,1749407442040,-156.73560998,0.0002329,4]
[365022307,1749407442050,-156.73560998,0.0002329,4]
[365022308,1749407442060,-156.73,0.0002329,4]
[365022309,1749407442070,-219.42985397,0.0002329,4]
[365022310,1749407442080,-219.42985397,0.0002329,4]
[365022311,1749407442091,-219.42985397,0.0002329,4]
[365022312,1749407442101,-219.42985397,0.0002329,4]
[365022313,1749407442110,-219.42985397,0.0002329,4]
[365022314,1749407442121,-219.42985397,0.0002329,4]
[365022315,1749407442131,-219.42985397,0.0002329,4]
[365022316,1749407442141,-219.42985397,0.0002329,4]
[365022317,1749407442150,-219.42985397,0.0002329,4]
[365022318,1749407442160,-219.42985397,0.0002329,4]
[365022319,1749407442170,-219.42985397,0.0002329,4]
[365022320,1749407442180,-219.42985397,0.0002329,4]
[365022321,1749407442190,-219.42985397,0.0002329,4]
[365022322,1749407442199,-219.42985397,0.0002329,4]
[365022323,1749407442209,-219.42985397,0.0002329,4]
[365022324,1749407442219,-219.42985397,0.0002329,4]
[365022325,1749407442228,-219.42985397,0.0002329,4]
[365022326,1749407442238,-282.78899437,0.0002329,4]
[365022327,1749407442247,-282.78899437,0.0002329,4]
[365022328,1749407442257,-282.78899437,0.0002329,4]
[365022329,1749407442267,-282.78899437,0.0002329,4]
[365022330,1749407442277,-282.78899437,0.0002329,4]
[365022331,1749407442287,-282.78899437,0.0002329,4]
[365022332,1749407442297,-282.78899437,0.0002329,4]
[365022333,1749407442306,-282.78899437,0.0002329,4]
[365022334,1749407442316,-282.78899437,0.0002329,4]
[365022335,1749407442326,-282.78899437,0.0002329,4]
[365022336,1749407442336,-282.78899437,0.0002329,4]
[365022337,1749407442345,-282.78899437,0.0002329,4]
[365022338,1749407442355,-282.78899437,0.0002329,4]
[365022339,1749407442365,-282.78899437,0.0002329,4]
[365022340,1749407442375,-282.78899437,0.0002329,4]
[365022341,1749407442385,-282.78899437,0.0002329,4]
[365022342,1749407442395,-282.78899437,0.0002329,4]
[365022343,1749407442405,-282.78899437,0.0002329,4]
[365022345,1749407442416,-282.78899437,0.0002329,4]
[365022346,1749407442426,-282.78,0.0002329,4]
[365022347,1749407442436,-659.84098686,0.0002329,4]
[365022348,1749407442447,-659.84098686,0.0002329,4]
[365022349,1749407442457,-659.84098686,0.0002329,4]
[365022350,1749407442467,-659.84098686,0.0002329,4]
[365022351,1749407442477,-659.84098686,0.0002329,4]
[365022352,1749407442487,-659.84098686,0.0002329,4]
[365022353,1749407442497,-659.84098686,0.0002329,4]
[365022354,1749407442507,-659.84098686,0.0002329,4]
[365022356,1749407442517,-659.84098686,0.0002329,4]
[365022358,1749407442526,-659.84098686,0.0002329,4]
[365022360,1749407442537,-659.84098686,0.0002329,4]
[365022361,1749407442549,-659.84098686,0.0002329,4]
[365022362,1749407442560,-659.84098686,0.0002329,4]
[365022363,1749407442571,-659.84098686,0.0002329,4]
[365022364,1749407442581,-659.84098686,0.0002329,4]
[365022365,1749407442592,-659.84098686,0.0002329,4]
[365022367,1749407442602,-659.84098686,0.0002329,4]
[365022369,1749407442613,-48881.72328221,0.000233,5]
[365022370,1749407442623,-107407.05365512,0.000233,2]
[365022371,1749407442768,-1483.78033646,0.0002251,4]
[365022383,1749407446037,-440.0,0.00019221,2]
[365022384,1749407446047,-69.6161884,0.00019221,2]
[365022385,1749407446146,-365.50579278,0.00019221,2]
[365022386,1749407446157,-440.0,0.00019495,2]
[365022387,1749407446167,-166.62,0.00019769,2]
[365022388,1749407446177,-127.85966354,0.0002251,4]
[365022389,1749407446187,-1611.64,0.00022784,4]
[365022390,1749407446198,-158.6873432,0.00022904,2]
[365022391,1749407446209,-1611.64,0.00023058,4]
[365022392,1749407446219,-1119.98,0.0002329,10]
[365022393,1749407446228,-12553.87855143,0.000233,2]
[365022398,1749407821449,254.217416,0.00013699,2]
[365022435,1749408632098,-246.553799,0.00018793,2]
[365022437,1749408632108,-16.52537287,0.000189,2]
[365022439,1749408632120,-970.09751266,0.000189,2]
[365022441,1749408632130,-903.951738,0.00018956,2]
[365022443,1749408632141,-201.04381416,0.00019121,2]
[365022445,1749408632151,-533.25220462,0.00019879,2]
[365022468,1749408632361,-247.26779538,0.00019879,2]
[365022470,1749408632371,-160.43255314,0.0001994,2]
[365022474,1749408632383,-300.0,0.00020038,2]
[365022478,1749408632392,-300.0,0.00020038,2]
[365022482,1749408632402,-1200.0,0.00020038,2]
[365022486,1749408632412,-500.0,0.00020039,2]
[365022490,1749408632423,-451.15762798,0.00020039,2]
[365022493,1749408632432,-500.0,0.00020039,2]
[365022496,1749408632441,-500.0,0.00020039,2]
[365022499,1749408632450,-247.5882973,0.00020039,2]
[365022501,1749408632460,-500.0,0.00020039,2]
[365022504,1749408632469,-440.0,0.00020039,2]
[365022506,1749408632479,-440.0,0.00020039,2]
[365022510,1749408632489,-440.0,0.00020039,2]
[365022513,1749408632499,-440.0,0.00020039,2]
[365022516,1749408632510,-430.0,0.00020039,2]
[365022519,1749408632519,-440.0,0.00020039,2]
[365022522,1749408632528,-430.0,0.00020039,2]
[365022525,1749408632538,-558.43,0.00020039,2]
[365022528,1749408632548,-440.0,0.00020039,2]
[365022531,1749408632557,-430.0,0.00020039,2]
[365022533,1749408632567,-440.0,0.00020039,2]
[365022534,1749408632577,-440.0,0.00020039,2]
[365022535,1749408632587,-440.0,0.00020039,2]
[365022536,1749408632596,-430.0,0.00020039,2]
[365022537,1749408632606,-440.0,0.00020039,2]
[365022538,1749408632616,-440.0,0.00020039,2]
[365022539,1749408632627,-440.0,0.00020039,2]
[365022540,1749408632637,-440.0,0.00020039,2]
[365022541,1749408632648,-337.54383962,0.00020039,2]
[365022542,1749408632659,-440.0,0.00020039,2]
[365022543,1749408632669,-440.0,0.00020039,2]
[365022544,1749408632678,-440.0,0.00020039,2]
[365022545,1749408632687,-400.0,0.00020039,2]
[365022546,1749408632697,-440.0,0.00020039,2]
[365022547,1749408632707,-430.0,0.00020039,2]
[365022548,1749408632716,-440.0,0.00020039,2]
[365022549,1749408632725,-440.0,0.00020039,2]
[365022550,1749408632734,-440.0,0.00020039,2]
[365022551,1749408632745,-430.0,0.00020039,2]
[365022552,1749408632756,-430.0,0.00020039,2]
[365022553,1749408632765,-450.0,0.0002004,2]
[365022554,1749408632777,-431.25416698,0.0002004,2]
[365022555,1749408632787,-403.83979536,0.0002004,2]
[365022556,1749408632796,-440.0,0.0002004,2]
[365022557,1749408632807,-449.30003978,0.0002004,2]
[365022558,1749408632816,-440.0,0.0002004,2]
[365022559,1749408632826,-170.51195781,0.0002004,2]
[365022560,1749408632835,-390.0,0.0002004,2]
[365022561,1749408632846,-440.09053989,0.0002004,2]
[365022562,1749408632855,-430.0,0.0002004,2]
[365022563,1749408632865,-440.0,0.0002004,2]
[365022564,1749408632874,-440.0,0.0002004,2]
[365022565,1749408632884,-440.0,0.0002004,2]
[365022566,1749408632895,-437.78767133,0.0002004,2]
[365022567,1749408632906,-440.0,0.0002004,2]
[365022568,1749408632916,-440.0,0.0002004,2]
[365022569,1749408632926,-440.0,0.0002004,2]
[365022570,1749408632937,-443.64799591,0.0002004,2]
[365022571,1749408632947,-514.22176181,0.0002004,2]
[365022572,1749408632958,-503.3260284,0.0002004,2]
[365022573,1749408632968,-440.0,0.0002004,2]
[365022574,1749408632978,-440.0,0.0002004,2]
[365022575,1749408632988,-441.02540797,0.0002004,2]
[365022576,1749408632998,-445.37745601,0.0002004,2]
[365022577,1749408633155,-440.0,0.0002004,2]
[365022578,1749408633166,-440.0,0.0002004,2]
[365022579,1749408633176,-430.0,0.0002004,2]
[365022580,1749408633186,-440.0,0.0002004,2]
[365022581,1749408633196,-440.0,0.0002004,2]
[365022582,1749408633206,-430.0,0.0002004,2]
[365022583,1749408633216,-440.0,0.0002004,2]
[365022584,1749408633226,-438.86606368,0.0002004,2]
[365022585,1749408633236,-556.00428834,0.0002004,2]
[365022586,1749408633245,-440.0,0.0002004,2]
[365022587,1749408633255,-440.0,0.0002004,2]
[365022588,1749408633264,-440.0,0.0002004,2]
[365022589,1749408633274,-440.0,0.0002004,2]
[365022590,1749408633283,-440.0,0.0002004,2]
[365022591,1749408633293,-430.0,0.0002004,2]
[365022592,1749408633302,-459.80013698,0.0002004,2]
[365022593,1749408633312,-440.0,0.0002004,2]
[365022594,1749408633321,-440.0,0.0002004,2]
[365022595,1749408633331,-440.0,0.0002004,2]
[365022596,1749408633344,-517.37955047,0.0002004,2]
[365022597,1749408633354,-440.0,0.0002004,2]
[365022598,1749408633363,-430.0,0.0002004,2]
[365022599,1749408633374,-450.0,0.0002004,2]
[365022600,1749408633383,-440.0,0.0002004,2]
[365022601,1749408633394,-450.25561317,0.0002004,2]
[365022602,1749408633403,-440.0,0.0002004,2]
[365022603,1749408633414,-500.0,0.0002004,2]
[365022604,1749408633425,-509.46256607,0.0002004,2]
[365022605,1749408633435,-440.0,0.0002004,2]
[365022606,1749408633444,-505.24586559,0.0002004,2]
[365022607,1749408633454,-426.53720449,0.0002004,2]
[365022608,1749408633463,-440.0,0.0002004,2]
[365022609,1749408633473,-430.0,0.0002004,2]
[365022610,1749408633483,-440.0,0.0002004,2]
[365022611,1749408633492,-440.0,0.0002004,2]
[365022612,1749408633502,-430.0,0.0002004,2]
[365022613,1749408633512,-440.0,0.0002004,2]
[365022614,1749408633521,-500.89424069,0.0002004,2]
[365022615,1749408633531,-440.0,0.0002004,2]
[365022616,1749408633541,-440.0,0.0002004,2]
[365022617,1749408633550,-440.0,0.0002004,2]
[365022618,1749408633560,-440.0,0.0002004,2]
[365022619,1749408633571,-220.83138837,0.0002004,2]
[365022620,1749408633581,-440.0,0.0002004,2]
[365022621,1749408633591,-440.0,0.0002004,2]
[365022622,1749408633600,-509.96422887,0.0002004,2]
[365022623,1749408633610,-440.0,0.0002004,2]
[365022624,1749408633619,-440.0,0.0002004,2]
[365022625,1749408633629,-440.0,0.0002004,2]
[365022626,1749408633639,-440.0,0.0002004,2]
[365022627,1749408633649,-440.0,0.0002004,2]
[365022628,1749408633658,-440.0,0.0002004,2]
[365022629,1749408633668,-505.73193461,0.0002004,2]
[365022630,1749408633678,-452.79946169,0.0002004,2]
[365022631,1749408633687,-440.0,0.0002004,2]
[365022632,1749408633696,-400.0,0.0002004,2]
[365022633,1749408633705,-443.54183881,0.0002004,2]
[365022634,1749408633715,-440.0,0.0002004,2]
[365022635,1749408633725,-443.46448818,0.0002004,2]
[365022636,1749408633735,-430.0,0.0002004,2]
[365022637,1749408633744,-1408.53964361,0.0002004,2]
[365022638,1749408633754,-1408.53964361,0.0002004,2]
[365022639,1749408633764,-1408.53964361,0.0002004,2]
[365022640,1749408633774,-1408.53964361,0.0002004,2]
[365022641,1749408633783,-1408.53964361,0.0002004,2]
[365022642,1749408633793,-1408.53964361,0.0002004,2]
[365022643,1749408633802,-440.0,0.0002004,2]
[365022644,1749408633811,-1408.53964361,0.0002004,2]
[365022645,1749408633821,-400.0,0.0002004,2]
[365022646,1749408633831,-440.0,0.0002004,2]
[365022647,1749408633840,-255.91969351,0.0002004,2]
[365022648,1749408633850,-440.0,0.0002004,2]
[365022649,1749408633859,-440.0,0.0002004,2]
[365022650,1749408633869,-224.73162541,0.0002004,2]
[365022651,1749408633879,-438.5400187,0.0002004,2]
[365022652,1749408633888,-440.0,0.0002004,2]
[365022653,1749408633898,-440.0,0.0002004,2]
[365022654,1749408633907,-440.0,0.0002004,2]
[365022655,1749408633917,-440.0,0.0002004,2]
[365022656,1749408633927,-430.0,0.0002004,2]
[365022657,1749408633937,-430.0,0.0002004,2]
[365022658,1749408633946,-1699.22631172,0.0002004,2]
[365022659,1749408633956,-987.44927618,0.0002004,2]
[365022660,1749408633972,-711.77703554,0.0002004,2]
[365022661,1749408633982,-1699.22631172,0.0002004,2]
[365022662,1749408633992,-1699.22631172,0.0002004,2]
[365022663,1749408634001,-1699.22631172,0.0002004,2]
[365022664,1749408634011,-1699.22631172,0.0002004,2]
[365022665,1749408634020,-1699.22631172,0.0002004,2]
[365022666,1749408634030,-1699.22631172,0.0002004,2]
[365022667,1749408634039,-440.0,0.0002004,2]
[365022668,1749408634049,-440.0,0.0002004,2]
[365022669,1749408634059,-440.0,0.0002004,2]
[365022670,1749408634069,-430.0,0.0002004,2]
[365022671,1749408634079,-440.0,0.0002004,2]
[365022672,1749408634089,-440.0,0.0002004,2]
[365022673,1749408634099,-440.0,0.0002004,2]
[365022674,1749408634108,-400.0,0.0002004,2]
[365022675,1749408634118,-440.0,0.0002004,2]
[365022676,1749408634128,-440.0,0.0002004,2]
[365022677,1749408634138,-1699.22631172,0.0002004,2]
[365022678,1749408634148,-440.0,0.0002004,2]
[365022679,1749408634157,-1699.22631172,0.0002004,2]